bitfinex-derivatives/quotes_SOLF0:USTF0_20250703
["timestamp","ask_amount","ask_price","bid_price","bid_amount"]
[1751540452410,6.4613,154.72,154.7,50.6219]
[1751540452611,8.80946338,154.73,154.7,50.6219]
[1751540453008,8.80906338,154.74,154.71,6.4612]
[1751540453214,2.34856338,154.74,154.7,232.70856338]
[1751540453913,2.34856338,154.74,154.71,6.4615]
[1751540455415,8.80906338,154.74,154.71,6.4615]
[1751540459414,6.4608,154.73,154.71,6.4615]
[1751540459712,6.4608,154.73,154.7,239.17036338]
[1751540461723,8.80936338,154.73,154.71,6.4615]
[1751540462518,6.4608,154.73,154.7,239.17036338]
[1751540463222,6.4608,154.73,154.71,6.4615]
[1751540463425,6.4608,154.73,154.71,192.6815]
[1751540463925,6.4608,154.73,154.71,186.22]
[1751540464724,6.4608,154.73,154.71,192.6815]
[1751540465422,6.4608,154.73,154.71,186.22]
[1751540465620,8.80906338,154.74,154.71,186.22]
[1751540465923,2.34856338,154.79,154.75,6.4598]
[1751540466224,6.4591,154.77,154.75,188.56856338]
[1751540467721,6.4594,154.76,154.75,188.56856338]
[1751540467920,6.4594,154.76,154.75,186.22]
[1751540468624,6.4592,154.77,154.75,186.22]
[1751540469220,3.67285896,154.8,154.75,186.22]
[1751540469924,6.4594,154.76,154.75,186.22]
[1751540470327,3.67285896,154.8,154.75,186.22]
[1751540470526,6.4592,154.77,154.75,186.22]
[1751540472624,6.4594,154.76,154.75,186.22]
[1751540473928,6.4592,154.77,154.75,186.22]
[1751540476335,6.4592,154.77,154.75,192.6798]
[1751540477432,6.4592,154.77,154.75,186.22]
[1751540479436,6.4592,154.77,154.75,192.6799]
[1751540479733,6.4592,154.77,154.75,186.22]
[1751540483038,6.4594,154.76,154.75,186.22]
[1751540484135,3.67285896,154.8,154.75,186.22]
[1751540484341,6.7939,154.83,154.77,3.67285896]
[1751540484840,6.7939,154.83,154.76,3.67285896]
[1751540485341,6.4579,154.8,154.78,6.4585]
[1751540485939,6.4579,154.8,154.77,6.4587]
[1751540486737,3.67285896,154.82,154.75,230.32]
[1751540486930,3.67285896,154.82,154.74,3.67285896]
[1751540486931,3.67285896,154.78,154.73,2.18]
[1751540487338,6.4599,154.75,154.73,8.6405]
[1751540487541,3.67285896,154.78,154.73,2.18]
[1751540487843,6.4596,154.76,154.74,6.4603]
[1751540488035,6.4596,154.76,154.73,2.18]
[1751540488435,6.4596,154.76,154.73,8.6405]
[1751540490043,6.4599,154.75,154.73,8.6405]
[1751540490338,6.4599,154.75,154.73,2.18]
[1751540491540,6.4599,154.75,154.73,8.6406]
[1751540491842,6.4599,154.75,154.73,2.18]
[1751540493647,6.4599,154.75,154.74,186.12]
[1751540493840,6.4596,154.76,154.74,186.12]
[1751540494241,6.4596,154.76,154.73,2.18]
[1751540494440,6.4596,154.76,154.74,186.12]
[1751540494942,6.4596,154.76,154.74,192.5801]
[1751540495139,6.4591,154.77,154.74,192.5801]
[1751540496342,10.46675896,154.83,154.75,3.67285896]
[1751540496542,10.46675896,154.83,154.77,3.67285896]
[1751540496742,10.46675896,154.83,154.77,189.77285896]
[1751540496942,10.46675896,154.83,154.77,240.33165896]
[1751540497343,6.4582,154.79,154.77,240.33165896]
[1751540497544,10.46675896,154.83,154.77,233.87285896]
[1751540497946,6.4586,154.78,154.77,230.2]
[1751540501354,6.4592,154.77,154.75,6.4598]
[1751540501655,3.67285896,154.81,154.76,186.1]
[1751540502452,6.459,154.77,154.76,186.1]
[1751540504744,6.4599,154.75,154.74,47.77285896]
[1751540504949,6.4599,154.75,154.74,230.18]
[1751540505154,3.67285896,154.81,154.74,44.1]
[1751540505350,6.4597,154.76,154.75,186.08]
[1751540510660,9.66575362,154.81,154.75,186.08]
[1751540511059,9.66575362,154.81,154.75,183.58]
[1751540511261,6.4594,154.76,154.75,183.58]
[1751540511560,16.45965362,154.83,154.75,183.58]
[1751540511762,16.45965362,154.83,154.76,3.67285896]
[1751540512560,6.4586,154.78,154.76,10.13215896]
[1751540515063,6.4584,154.79,154.77,6.4588]
[1751540515260,6.4584,154.79,154.78,186.06]
[1751540524467,6.4596,154.76,154.74,44.1]
[1751540524671,3.67285896,154.79,154.74,230.12]
[1751540525071,6.4597,154.76,154.74,50.56]
[1751540525273,3.67285896,154.79,154.74,44.1]
[1751540527372,6.4597,154.76,154.74,50.5603]
[1751540529672,6.4597,154.76,154.74,236.5803]
[1751540536881,6.4597,154.76,154.74,50.5603]
[1751540537076,6.4597,154.76,154.75,186.02]
[1751540541881,6.4599,154.75,154.74,44.1]
[1751540542082,8.81087981,154.75,154.74,44.1]
[1751540543981,2.35097981,154.75,154.74,44.1]
[1751540544182,6.4595,154.76,154.74,44.1]
[1751540544990,6.4595,154.76,154.75,186.0]
[1751540547285,8.81017981,154.77,154.75,186.0]
[1751540547486,6.4592,154.77,154.75,186.0]
[1751540548385,6.4592,154.77,154.75,192.4596]
[1751540548586,6.4592,154.77,154.75,186.0]
[1751540549791,6.4594,154.76,154.75,186.0]
[1751540551293,6.4592,154.77,154.75,192.4599]
[1751540551592,6.4592,154.77,154.75,186.0]
[1751540551794,6.4594,154.76,154.75,186.0]
[1751540553895,6.4592,154.77,154.75,186.0]
[1751540554594,6.4594,154.76,154.75,186.0]
[1751540556198,6.4594,154.76,154.74,50.5602]
[1751540556494,6.4594,154.76,154.75,185.98]
[1751540559196,6.4594,154.76,154.75,185.98]
[1751540568606,2.35092003,154.79,154.75,194.79082003]
[1751540569302,6.4589,154.78,154.75,194.79082003]
[1751540569907,8.80982003,154.78,154.75,194.79082003]
[1751540571307,6.4591,154.77,154.75,194.79082003]
[1751540571509,6.4591,154.77,154.76,6.4594]
[1751540572202,2.35092003,154.78,154.77,6.459]
[1751540572411,115.90397856,154.8,154.77,6.459]
[1751540572412,115.90397856,154.8,154.77,2.35092003]
[1751540572607,7.94691551,154.85,154.75,185.98]
[1751540572608,2.35092003,154.84,154.79,2.35092003]
[1751540572806,2.35092003,154.84,154.81,2.35092003]
[1751540573106,2.35092003,154.84,154.81,185.92]
[1751540573806,8.80782003,154.82,154.81,185.92]
[1751540574312,2.35092003,154.82,154.79,185.92]
[1751540574511,2.35092003,154.81,154.79,185.92]
[1751540575014,5.9971453,154.86,154.79,185.92]
[1751540575216,2.35092003,154.83,154.79,188.27092003]
[1751540575513,2.35092003,154.83,154.79,2.35092003]
[1751540575714,2.35092003,154.83,154.8,185.9]
[1751540576314,6.4569,154.82,154.8,185.9]
[1751540577514,6.4574,154.81,154.8,185.9]
[1751540578913,8.80832003,154.81,154.8,185.9]
[1751540581114,6.4572,154.82,154.8,185.9]
[1751540581706,6.4572,154.82,154.8,192.3575]
[1751540582105,6.4574,154.81,154.8,185.9]
[1751540582516,2.35092003,154.83,154.8,185.9]
[1751540582716,6.4572,154.82,154.8,185.9]
[1751540582913,2.35092003,154.84,154.8,188.25092003]
[1751540583113,50.00742466,154.87,154.82,6.4568]
[1751540583114,2.35092003,154.85,154.82,6.4568]
[1751540583516,2.35092003,154.85,154.82,8.80772003]
[1751540583821,2.35092003,154.85,154.83,185.86]
[1751540584521,6.4561,154.84,154.83,185.86]
[1751540587718,6.4559,154.85,154.83,192.3165]
[1751540588321,6.4555,154.86,154.83,192.3165]
[1751540588525,6.4555,154.86,154.84,6.456]
[1751540589918,6.455,154.87,154.85,6.4557]
[1751540591124,6.455,154.87,154.84,6.4559]
[1751540591825,6.455,154.87,154.85,6.4556]
[1751540592027,6.4554,154.86,154.83,229.88]
[1751540592233,6.4554,154.86,154.84,6.4558]
[1751540593028,6.4551,154.87,154.85,6.4556]
[1751540594534,6.4551,154.87,154.84,6.4559]
[1751540597134,6.4551,154.87,154.83,229.88]
[1751540597135,6.4551,154.87,154.85,6.4556]
[1751540597336,6.4551,154.87,154.86,185.78]
[1751540599037,6.4546,154.88,154.86,192.2352]
[1751540599239,119.70317983,154.91,154.86,185.78]
[1751540599640,6.4542,154.89,154.87,6.4548]
[1751540599833,119.70317983,154.91,154.86,185.78]
[1751540600436,6.4545,154.88,154.86,192.235]
[1751540603743,6.4549,154.87,154.86,185.78]
[1751540605344,6.4554,154.86,154.84,6.456]
[1751540605643,6.4554,154.86,154.85,185.74]
[1751540606644,6.455,154.87,154.85,185.74]
[1751540606840,119.70317983,154.91,154.85,185.74]
[1751540607746,2.34742441,154.89,154.85,188.08742441]
[1751540608545,6.4547,154.88,154.86,6.455]
[1751540610143,6.4542,154.89,154.85,185.74]
[1751540610746,6.4544,154.88,154.86,6.4551]
[1751540613248,6.4549,154.87,154.86,185.7]
[1751540614051,6.4546,154.88,154.86,192.1553]
[1751540618853,6.4541,154.89,154.87,6.4548]
[1751540620255,6.4544,154.88,154.86,192.1551]
[1751540621756,116.03392212,154.91,154.86,185.7]
[1751540621946,116.03392212,154.91,154.87,3.66786278]
[1751540622152,116.03392212,154.91,154.88,43.98]
[1751540622857,3.66786278,154.94,154.88,43.98]
[1751540623055,3.66786278,154.96,154.89,3.66786278]
[1751540623259,3.66786278,154.98,154.93,6.4523]
[1751540623454,3.66786278,154.98,154.91,3.66786278]
[1751540623957,6.4517,154.95,154.92,6.4524]
[1751540624859,5.98742466,155.0,154.94,6.4519]
[1751540625056,1.12346855,155.01,154.94,185.66]
[1751540625057,3.66786278,154.98,154.94,185.66]
[1751540626059,6.4511,154.97,154.94,192.1119]
[1751540628163,6.4511,154.96,154.94,192.1119]
[1751540630264,6.4511,154.96,154.94,185.66]
[1751540630463,3.66786278,154.99,154.94,185.66]
[1751540631366,6.4514,154.96,154.94,185.66]
[1751540635865,8.79658312,154.96,154.94,185.66]
[1751540636965,6.4514,154.96,154.94,185.66]
[1751540637169,8.79658312,154.96,154.94,185.66]
[1751540642578,8.79658312,154.96,154.94,192.1117]
[1751540642877,2.34518312,154.97,154.94,188.00518312]
[1751540644576,6.4511,154.96,154.94,194.45698312]
[1751540644775,6.4511,154.96,154.94,192.1118]
[1751540647185,2.34518312,154.99,154.95,2.34518312]
[1751540647388,2.34518312,155.0,154.97,2.34518312]
[1751540647589,2.34518312,155.01,154.98,185.54]
[1751540647786,2.34518312,155.02,154.98,231.80518312]
[1751540648090,2.34518312,155.0,154.98,229.46]
[1751540648282,2.34518312,154.99,154.98,229.46]
[1751540649183,2.1844,155.04,154.98,229.46]
[1751540649380,2.34518312,155.0,154.98,229.46]
[1751540649581,2.34518312,155.01,154.98,231.80518312]
[1751540649789,6.4491,155.01,154.98,238.25518312]
[1751540649990,6.4491,155.01,154.98,231.80518312]
[1751540650478,6.4491,155.01,154.98,238.25528312]
[1751540650684,6.4495,155.0,154.98,238.25528312]
[1751540652492,6.4495,155.0,154.98,235.9101]
[1751540652690,2.1844,155.04,154.95,43.92]
[1751540652888,2.34518312,154.97,154.96,185.52]
[1751540653390,8.79588312,154.97,154.96,185.52]
[1751540653589,2.34518312,154.97,154.91,43.92]
[1751540653791,6.4526,154.93,154.92,185.5]
[1751540654294,6.4523,154.94,154.92,185.5]
[1751540655197,2.1678,155.0,154.92,185.5]
[1751540655493,3.66603023,154.98,154.92,189.16603023]
[1751540655689,6.4508,154.97,154.95,6.4513]
[1751540655896,3.66603023,155.01,154.96,229.42]
[1751540656087,3.66603023,155.03,154.97,185.5]
[1751540656286,6.4493,155.01,154.97,185.5]
[1751540656690,6.4493,155.01,154.98,6.4502]
[1751540656896,6.4493,155.01,154.97,185.5]
[1751540657292,6.4493,155.01,154.98,6.45]
[1751540657986,6.4495,155.0,154.98,6.45]
[1751540659294,6.45,154.99,154.97,191.9505]
[1751540659598,3.66603023,155.01,154.96,43.92]
[1751540659794,6.4505,154.98,154.97,185.54]
[1751540659986,3.66603023,154.99,154.96,229.48]
[1751540660498,6.4505,154.98,154.96,229.48]
[1751540661596,6.4507,154.97,154.96,43.92]
[1751540661794,6.4507,154.97,154.96,229.46]
[1751540662692,10.11673023,154.97,154.96,43.92]
[1751540663100,3.66603023,154.99,154.96,43.92]
[1751540664594,6.4507,154.97,154.96,43.92]
[1751540665999,6.4504,154.98,154.96,43.92]
[1751540666499,3.66603023,154.99,154.96,43.92]
[1751540666697,3.66603023,154.99,154.96,229.6]
[1751540667095,6.4507,154.97,154.96,229.6]
[1751540673107,6.4504,154.98,154.96,229.6]
[1751540673508,6.4504,154.98,154.96,236.051]
[1751540675405,6.4504,154.98,154.96,229.6]
[1751540675605,6.4507,154.97,154.96,229.6]
[1751540678207,6.4507,154.97,154.96,43.92]
[1751540678403,6.4507,154.97,154.96,229.68]
[1751540680211,6.4507,154.97,154.96,229.64]
[1751540687420,9.69992751,155.0,154.96,236.0908]
[1751540687815,3.66603023,155.0,154.96,229.64]
[1751540688013,6.4505,154.98,154.96,229.64]
[1751540688220,6.4505,154.98,154.96,236.0909]
[1751540689920,6.4507,154.97,154.96,229.64]
[1751540691120,6.4505,154.98,154.96,229.64]
[1751540694417,6.4505,154.98,154.96,236.091]
[1751540696927,6.4505,154.98,154.96,229.64]
[1751540698227,6.4505,154.98,154.96,236.0911]
[1751540699422,6.4505,154.98,154.96,229.64]
[1751540700424,9.69992751,155.01,154.96,236.0909]
[1751540701530,6.4505,154.98,154.96,236.0909]
[1751540701724,9.69992751,155.01,154.96,229.64]
[1751540702228,6.4507,154.97,154.96,229.64]
[1751540706829,6.03389728,155.0,154.96,236.0911]
[1751540707129,6.03389728,155.02,154.96,233.30603023]
[1751540707935,6.4496,155.0,154.98,6.45]
[1751540708131,6.4496,155.0,154.99,185.74]
[1751540710431,6.4492,155.01,154.99,185.74]
[1751540710738,9.69992751,155.03,154.99,185.74]
[1751540710739,6.03389728,155.03,154.99,185.74]
[1751540711236,6.03389728,155.04,154.99,185.74]
[1751540711639,6.4486,155.03,155.0,6.4492]
[1751540711933,6.4486,155.03,155.01,185.72]
[1751540712330,6.4486,155.02,155.01,185.72]
[1751540712726,9.69992751,155.06,155.01,185.72]
[1751540713132,6.4476,155.05,155.02,6.4484]
[1751540713439,6.03389728,155.06,155.03,185.86]
[1751540714337,6.4478,155.04,155.03,185.86]
[1751540715537,10.11383023,155.04,154.97,8.09033023]
[1751540715842,3.66603023,155.02,154.98,229.86]
[1751540716038,3.66603023,155.02,154.98,44.04]
[1751540716244,6.4498,154.99,154.98,44.04]
[1751540729954,6.4512,154.96,154.94,44.12]
[1751540730350,6.4515,154.95,154.94,44.12]
[1751540733450,6.4526,154.93,154.9,50.5734]
[1751540733650,3.66603023,154.97,154.9,50.5734]
[1751540733849,3.66603023,154.95,154.9,50.5734]
[1751540734545,6.4528,154.92,154.9,44.12]
[1751540734754,3.66603023,154.95,154.9,44.12]
[1751540734954,6.4529,154.92,154.9,44.12]
[1751540736165,6.4532,154.91,154.9,44.12]
[1751540738671,3.66603023,154.95,154.9,44.12]
[1751540739064,3.66603023,154.95,154.9,50.5734]
[1751540739767,6.4525,154.93,154.9,50.5734]
[1751540741871,6.4529,154.92,154.9,50.5734]
[1751540742268,3.66603023,154.95,154.9,44.12]
[1751540744460,6.4532,154.91,154.9,44.12]
[1751540744662,3.66603023,154.95,154.9,44.12]
[1751540744862,3.66603023,154.94,154.9,44.12]
[1751540745268,6.4529,154.92,154.9,50.5736]
[1751540746774,6.4529,154.92,154.9,44.12]
[1751540748272,6.4529,154.92,154.9,50.5735]
[1751540749075,6.4532,154.91,154.9,44.12]
[1751540755777,3.66603023,154.92,154.81,8.03303131]
[1751540755968,3.66603023,154.88,154.81,189.68603023]
[1751540756274,6.4557,154.85,154.82,2.2525]
[1751540756471,3.66603023,154.86,154.8,3.66603023]
[1751540756673,3.66603023,154.86,154.8,6.4574]
[1751540756874,3.66603023,154.82,154.79,44.14]
[1751540757271,6.4574,154.81,154.79,44.14]
[1751540757666,3.66603023,154.82,154.79,44.14]
[1751540758667,6.4576,154.81,154.79,44.14]
[1751540761577,6.4576,154.81,154.79,50.5982]
[1751540761778,6.4576,154.81,154.79,44.14]
[1751540762277,3.66603023,154.82,154.79,44.14]
[1751540763277,3.66603023,154.8,154.75,44.12]
[1751540763472,3.66603023,154.78,154.75,44.12]
[1751540764080,3.66603023,154.76,154.75,44.12]
[1751540764274,3.66603023,154.76,154.66,8.03303131]
[1751540764275,10.12543023,154.76,154.71,230.6]
[1751540764473,3.66603023,154.76,154.71,44.14]
[1751540764673,10.12473023,154.78,154.72,5.81443023]
[1751540764872,3.66603023,154.8,154.73,186.56]
[1751540765072,3.66603023,154.8,154.76,6.4591]
[1751540765476,6.4584,154.79,154.76,6.4591]
[1751540766674,10.12393023,154.8,154.74,3.66603023]
[1751540767081,6.4579,154.8,154.74,3.66603023]
[1751540767277,6.4579,154.8,154.76,6.459]
[1751540767474,6.4579,154.8,154.74,3.66603023]
[1751540767878,6.4579,154.8,154.77,6.4589]
[1751540772184,6.4582,154.79,154.77,6.4589]
[1751540773788,6.4579,154.8,154.77,6.4589]
[1751540774187,3.66603023,154.82,154.77,6.4589]
[1751540775789,6.4581,154.8,154.77,6.4589]
[1751540779393,6.4582,154.79,154.77,6.4589]
[1751540780594,3.66603023,154.82,154.76,44.14]
[1751540781300,6.458,154.8,154.78,6.4583]
[1751540792001,10.12353023,154.81,154.79,6.4582]
[1751540792600,10.12353023,154.81,154.78,6.4584]
[1751540795806,10.12353023,154.81,154.76,44.14]
[1751540795807,95.98302253,154.84,154.79,2.34915539]
[1751540796001,2.34915539,154.82,154.78,2.34915539]
[1751540796207,8.80676429,154.82,154.8,6.4575]
[1751540797106,2.34956429,154.81,154.76,44.14]
[1751540797308,2.34956429,154.78,154.76,44.14]
[1751540797707,2.34956429,154.77,154.76,44.14]
[1751540797913,3.6736224,154.78,154.76,44.14]
[1751540798207,6.4599,154.75,154.72,44.14]
[1751540798716,3.6736224,154.76,154.72,44.14]
[1751540799018,3.6736224,154.76,154.72,50.6009]
[1751540799218,3.6736224,154.76,154.72,44.14]
[1751540800218,6.4599,154.75,154.72,50.6009]
[1751540800720,6.4604,154.74,154.72,50.6009]
[1751540801918,3.6736224,154.79,154.72,44.14]
[1751540803521,6.4592,154.77,154.75,6.4598]
[1751540805124,6.4587,154.78,154.75,6.4598]
[1751540805423,6.4587,154.78,154.76,6.4594]
[1751540805631,6.4587,154.78,154.72,44.14]
[1751540806428,6.4587,154.78,154.75,6.4596]
[1751540809731,10.1320224,154.79,154.76,6.4592]
[1751540810530,6.4586,154.78,154.76,6.4592]
[1751540811732,6.459,154.77,154.75,6.4597]
[1751540813636,3.6736224,154.79,154.74,6.4599]
[1751540813827,3.6736224,154.79,154.72,47.8136224]
[1751540814329,6.4595,154.76,154.74,6.46]
[1751540816232,6.4595,154.76,154.72,47.8136224]
[1751540817132,6.4595,154.76,154.73,6.4606]
[1751540817331,6.4599,154.75,154.73,6.4606]
[1751540817531,3.6736224,154.75,154.72,44.14]
[1751540817732,6.4607,154.73,154.72,44.14]
[1751540818128,6.4607,154.73,154.7,6.4616]
[1751540818328,6.4607,154.73,154.68,44.16]
[1751540818733,6.4607,154.73,154.7,6.4617]
[1751540819235,6.4611,154.72,154.7,6.4617]
[1751540820431,6.4609,154.73,154.71,6.4615]
[1751540821134,6.4611,154.72,154.7,6.4618]
[1751540821827,6.4615,154.71,154.69,6.4622]
[1751540822033,3.6736224,154.73,154.68,44.16]
[1751540822236,3.6736224,154.71,154.68,44.16]
[1751540822436,3.6736224,154.73,154.69,6.4621]
[1751540823538,3.6736224,154.75,154.68,44.16]
[1751540824131,6.4609,154.73,154.7,6.4617]
[1751540824535,6.4609,154.73,154.68,44.16]
[1751540826332,6.4609,154.73,154.7,6.4615]
[1751540826534,3.6736224,154.77,154.7,3.6736224]
[1751540827239,6.4601,154.75,154.72,6.4607]
[1751540828034,6.4601,154.75,154.73,6.4607]
[1751540828634,6.4601,154.75,154.7,3.6736224]
[1751540828835,6.4604,154.74,154.72,6.4609]
[1751540829039,44.18,154.79,154.68,47.8336224]
[1751540829040,3.6736224,154.75,154.68,47.8336224]
[1751540829236,3.6736224,154.75,154.69,6.4621]
[1751540829435,6.4614,154.72,154.69,6.4621]
[1751540829631,3.6736224,154.73,154.68,44.16]
[1751540829837,6.4623,154.7,154.68,44.16]
[1751540831029,6.4616,154.71,154.68,44.16]
[1751540831234,3.6736224,154.72,154.68,44.16]
[1751540831937,6.4618,154.71,154.68,50.6225]
[1751540832442,3.6736224,154.72,154.68,50.6225]
[1751540832740,6.4616,154.71,154.68,50.6225]
[1751540833240,3.6736224,154.72,154.68,50.6225]
[1751540833644,6.4616,154.71,154.68,50.6225]
[1751540834144,6.4619,154.7,154.68,50.6225]
[1751540834344,3.6736224,154.72,154.69,6.4623]
[1751540834644,3.6736224,154.72,154.68,44.16]
[1751540835342,6.4622,154.7,154.68,44.16]
[1751540836442,6.4617,154.71,154.68,50.6227]
[1751540837141,6.4612,154.72,154.68,44.16]
[1751540837647,6.4612,154.72,154.69,6.4619]
[1751540838344,6.4615,154.71,154.69,6.4619]
[1751540838546,3.6736224,154.74,154.69,6.4619]
[1751540839140,6.4614,154.72,154.69,6.4619]
[1751540840347,6.4616,154.71,154.69,6.4619]
[1751540840850,3.6736224,154.72,154.68,44.16]
[1751540841047,6.4617,154.71,154.68,44.16]
[1751540841247,6.4617,154.71,154.69,6.4621]
[1751540841851,10.1349224,154.72,154.69,6.4621]
[1751540842852,6.4613,154.72,154.69,6.4621]
[1751540843047,10.1343224,154.73,154.68,44.16]
[1751540843348,3.6736224,154.75,154.68,234.0336224]
[1751540843852,6.4607,154.73,154.71,6.4612]
[1751540844454,46.5242,154.79,154.7,3.6736224]
[1751540844648,3.6736224,154.78,154.7,3.6736224]
[1751540844854,6.4599,154.75,154.73,6.4605]
[1751540846257,6.4599,154.75,154.72,6.4609]
[1751540846953,6.4599,154.75,154.73,6.4606]
[1751540847353,6.4599,154.75,154.7,3.6736224]
[1751540847554,6.4599,154.75,154.72,6.4607]
[1751540849254,3.6736224,154.77,154.69,2.2036]
[1751540849460,3.6736224,154.73,154.68,44.16]
[1751540849756,3.6736224,154.73,154.68,50.6227]
[1751540850344,6.4618,154.71,154.68,50.6227]
[1751540851452,6.4618,154.71,154.69,6.4623]
[1751540852054,6.4614,154.72,154.7,6.4619]
[1751540852951,6.4614,154.72,154.69,6.4621]
[1751540853657,6.4614,154.72,154.7,6.4619]
[1751540854253,6.4607,154.73,154.71,6.4615]
[1751540854461,3.6736224,154.75,154.71,6.4615]
[1751540854656,3.6736224,154.75,154.68,47.8336224]
[1751540854957,3.6736224,154.77,154.71,3.6736224]
[1751540855553,6.46,154.75,154.73,6.4607]
[1751540855958,3.6736224,154.77,154.71,3.6736224]
[1751540856157,3.6736224,154.77,154.72,6.4608]
[1751540856458,3.6736224,154.77,154.71,3.6736224]
[1751540857363,6.4603,154.74,154.69,3.6736224]
[1751540857555,3.6736224,154.77,154.69,3.6736224]
[1751540858060,6.46,154.75,154.72,6.4607]
[1751540858860,6.4603,154.74,154.72,6.4607]
[1751540859760,3.6736224,154.75,154.68,44.16]
[1751540860365,3.6736224,154.73,154.68,44.16]
[1751540860964,6.4613,154.72,154.69,6.4623]
[1751540861372,3.6736224,154.73,154.69,6.4623]
[1751540862575,6.4616,154.71,154.69,6.4623]
[1751540868677,6.4616,154.71,154.68,50.6226]
[1751540868978,6.4616,154.71,154.68,44.16]
[1751540869376,6.4616,154.71,154.69,6.4623]
[1751540870975,6.4616,154.71,154.68,50.6225]
[1751540871180,6.462,154.7,154.68,50.6225]
[1751540872882,6.4617,154.71,154.68,50.6225]
[1751540873084,6.4617,154.71,154.69,6.4623]
[1751540873384,6.4619,154.7,154.68,44.16]
[1751540873980,6.4617,154.71,154.68,44.16]
[1751540874183,3.6736224,154.73,154.68,44.16]
[1751540874381,3.6736224,154.73,154.68,50.6224]
[1751540874984,6.4619,154.71,154.68,50.6224]
[1751540875686,6.4619,154.71,154.69,6.4623]
[1751540876288,6.4622,154.7,154.68,50.6227]
[1751540877087,6.4623,154.69,154.68,44.16]
[1751540879289,6.4621,154.7,154.68,44.16]
[1751540883890,6.4623,154.69,154.68,44.16]
[1751540884690,6.4621,154.7,154.68,44.16]
[1751540885792,6.4623,154.69,154.68,44.16]
[1751540888097,6.462,154.7,154.68,50.6228]
[1751540889096,6.462,154.7,154.68,44.16]
[1751540889594,6.462,154.7,154.68,50.6227]
[1751540889796,4.5604,154.74,154.68,44.16]
[1751540889993,3.6736224,154.72,154.68,44.16]
[1751540891596,6.4623,154.69,154.68,44.16]
[1751540898500,3.6736224,154.71,154.64,52.15842328]
[1751540898694,3.6736224,154.69,154.62,52.15842328]
[1751540898900,3.6736224,154.69,154.62,230.22]
[1751540899096,6.4638,154.66,154.64,6.4644]
[1751540899798,8.81802199,154.66,154.64,6.4644]
[1751540900498,2.35422199,154.66,154.64,6.4644]
[1751540900801,8.81762199,154.67,154.64,6.4644]
[1751540901798,6.4637,154.66,154.64,6.4644]
[1751540902396,6.4637,154.66,154.63,192.5647]
[1751540902901,6.4637,154.66,154.63,6.4645]
[1751540903404,6.4637,154.66,154.63,12.49824238]
[1751540903604,6.464,154.65,154.63,12.49824238]
[1751540905909,6.4638,154.66,154.64,6.4644]
[1751540916916,3.6781637,154.68,154.63,6.03374238]
[1751540917211,3.6781637,154.7,154.63,9.71190608]
[1751540917712,6.4628,154.68,154.65,6.4638]
[1751540917913,3.6781637,154.7,154.65,6.4638]
[1751540919010,6.4635,154.67,154.65,6.4638]
[1751540919512,3.6781637,154.7,154.66,6.4636]
[1751540919700,3.6781637,154.7,154.63,9.71190608]
[1751540920112,6.4628,154.68,154.66,6.4633]
[1751540921013,6.4628,154.68,154.65,6.4638]
[1751540921314,3.6781637,154.68,154.63,6.03374238]
[1751540921613,6.4634,154.67,154.64,6.4642]
[1751540921813,2.35411162,154.66,154.64,6.4642]
[1751540922302,2.35411162,154.66,154.63,6.03374238]
[1751540922611,2.35411162,154.65,154.63,6.03374238]
[1751540922814,8.81841162,154.65,154.62,245.092854]
[1751540923205,2.35411162,154.65,154.62,58.972854]
[1751540923513,2.35411162,154.65,154.62,52.93911162]